[Event "Late-Titled-Tuesday-Blitz-December-26-2023"]
[Site "Chess.com"]
[Date "2023.12.26"]
[Round "1"]
[White "yosephtaher"]
[Black "Slovak_fighter2000"]
[Result "1-0"]
[WhiteElo "2918"]
[BlackElo "2490"]
[TimeControl "180+1"]
[EndTime "14:10:07 PST"]
[Termination "yosephtaher won on time"]

1. d4 {[%clk 0:03:00.9]} 1... Nf6 {[%clk 0:02:59.5]} 2. Nc3 {[%clk 0:03:01.4]}
2... d5 {[%clk 0:02:59.4]} 3. Bf4 {[%clk 0:03:01.9]} 3... e6 {[%clk 0:02:59.8]}
4. Nb5 {[%clk 0:03:01.5]} 4... Bb4+ {[%clk 0:02:58.7]} 5. c3 {[%clk 0:03:01.7]}
5... Ba5 {[%clk 0:02:59.1]} 6. b4 {[%clk 0:03:02.4]} 6... Bb6 {[%clk 0:02:59.1]}
7. a4 {[%clk 0:03:03.1]} 7... a5 {[%clk 0:02:50]} 8. e3 {[%clk 0:03:01.8]} 8...
O-O {[%clk 0:02:47.3]} 9. Bd3 {[%clk 0:03:01.6]} 9... c6 {[%clk 0:02:42.2]} 10.
Na3 {[%clk 0:03:00.4]} 10... Bc7 {[%clk 0:02:38.4]} 11. Bg3 {[%clk 0:02:58.3]}
11... Nbd7 {[%clk 0:02:30.1]} 12. f4 {[%clk 0:02:48.6]} 12... Ne4 {[%clk
0:02:21.9]} 13. Ne2 {[%clk 0:02:43.4]} 13... axb4 {[%clk 0:02:13.5]} 14. cxb4
{[%clk 0:02:43.2]} 14... Qe7 {[%clk 0:02:13.2]} 15. Qb3 {[%clk 0:02:40.9]} 15...
Ndf6 {[%clk 0:01:56.3]} 16. Bh4 {[%clk 0:02:37.5]} 16... Qd6 {[%clk 0:01:48.2]}
17. Nc2 {[%clk 0:02:32.4]} 17... b6 {[%clk 0:01:46.4]} 18. Rd1 {[%clk 0:02:27]}
18... c5 {[%clk 0:01:43.7]} 19. Bb5 {[%clk 0:01:47.6]} 19... c4 {[%clk
0:01:34.2]} 20. Qb2 {[%clk 0:01:43.7]} 20... Bd7 {[%clk 0:01:33.1]} 21. Na3
{[%clk 0:01:36.9]} 21... Bxb5 {[%clk 0:01:25.8]} 22. Nxb5 {[%clk 0:01:37]} 22...
Qd7 {[%clk 0:01:26.3]} 23. Ra1 {[%clk 0:01:37.2]} 23... Bd6 {[%clk 0:01:16.1]}
24. O-O {[%clk 0:01:35.2]} 24... Ng4 {[%clk 0:01:11.5]} 25. Ra3 {[%clk
0:01:29.4]} 25... Rxa4 {[%clk 0:00:59.6]} 26. Rxa4 {[%clk 0:01:28.6]} 26... Qxb5
{[%clk 0:00:59.7]} 27. Rfa1 {[%clk 0:01:20.1]} 27... Nxe3 {[%clk 0:00:55.6]} 28.
Ra8 {[%clk 0:01:19.7]} 28... f6 {[%clk 0:00:38.4]} 29. Be1 {[%clk 0:01:10.3]}
29... h5 {[%clk 0:00:26.4]} 30. h3 {[%clk 0:01:07.1]} 30... Rxa8 {[%clk
0:00:25.1]} 31. Rxa8+ {[%clk 0:01:06.6]} 31... Kh7 {[%clk 0:00:26]} 32. Qa3
{[%clk 0:00:58.9]} 32... c3 {[%clk 0:00:22.9]} 33. Qa6 {[%clk 0:00:29]} 33...
Qxa6 {[%clk 0:00:14.9]} 34. Rxa6 {[%clk 0:00:28.4]} 34... Nc2 {[%clk 0:00:04.6]}
35. Kf1 {[%clk 0:00:21.4]} 35... Nxe1 {[%clk 0:00:04.7]} 36. Kxe1 {[%clk
0:00:21]} 36... Bxb4 {[%clk 0:00:04.8]} 37. Rxb6 {[%clk 0:00:19.3]} 37... Ba5
{[%clk 0:00:05.1]} 38. Ra6 {[%clk 0:00:15.8]} 38... Bb4 {[%clk 0:00:05.3]} 39.
Kd1 {[%clk 0:00:16.4]} 39... Bd6 {[%clk 0:00:04]} 40. Kc2 {[%clk 0:00:14.2]}
40... Kg6 {[%clk 0:00:04.5]} 41. g4 {[%clk 0:00:12.2]} 41... hxg4 {[%clk
0:00:04.7]} 42. hxg4 {[%clk 0:00:13.1]} 42... Kf7 {[%clk 0:00:04.8]} 43. Kd3
{[%clk 0:00:10.5]} 43... Ke7 {[%clk 0:00:04.7]} 44. Ra7+ {[%clk 0:00:10.2]}
44... Kf8 {[%clk 0:00:05.1]} 45. Ke3 {[%clk 0:00:09]} 45... Bb4 {[%clk
0:00:02.9]} 46. Ra8+ {[%clk 0:00:07.8]} 46... Kf7 {[%clk 0:00:03.1]} 47. Rb8
{[%clk 0:00:08.7]} 47... Ba3 {[%clk 0:00:02.6]} 48. Rb7+ {[%clk 0:00:07.9]}
48... Kf8 {[%clk 0:00:02.8]} 49. Ra7 {[%clk 0:00:07.8]} 49... Bb2 {[%clk
0:00:03.3]} 50. Ra6 {[%clk 0:00:07.4]} 50... c2 {[%clk 0:00:02.2]} 51. Rc6
{[%clk 0:00:06.6]} 51... c1=Q+ {[%clk 0:00:01.9]} 52. Nxc1 {[%clk 0:00:06.7]}
52... Bxc1+ {[%clk 0:00:01.9]} 53. Rxc1 {[%clk 0:00:06.5]} 53... Nd6 {[%clk
0:00:02.4]} 54. Rc6 {[%clk 0:00:06.5]} 54... Ke7 {[%clk 0:00:02.7]} 55. Ra6
{[%clk 0:00:06.1]} 55... Nc4+ {[%clk 0:00:02.7]} 56. Kd3 {[%clk 0:00:06.8]}
56... Kf7 {[%clk 0:00:03.3]} 57. f5 {[%clk 0:00:06]} 57... exf5 {[%clk 0:00:03]}
58. gxf5 {[%clk 0:00:06.9]} 58... Ke7 {[%clk 0:00:03.2]} 59. Ra7+ {[%clk
0:00:06.2]} 59... Kf8 {[%clk 0:00:03.6]} 60. Rd7 {[%clk 0:00:06.9]} 60... Nb6
{[%clk 0:00:03]} 61. Rd6 {[%clk 0:00:06.8]} 61... Nc8 {[%clk 0:00:03.5]} 62.
Rxd5 {[%clk 0:00:06.8]} 62... Ne7 {[%clk 0:00:04.4]} 63. Ra5 {[%clk 0:00:07.5]}
63... Ke8 {[%clk 0:00:04.1]} 64. Ke4 {[%clk 0:00:07.9]} 64... Kd7 {[%clk
0:00:04.5]} 65. Ra7+ {[%clk 0:00:08]} 65... Kd6 {[%clk 0:00:05]} 66. Ra1 {[%clk
0:00:04.7]} 66... Kd7 {[%clk 0:00:03.5]} 67. Rg1 {[%clk 0:00:05.1]} 67... Kd6
{[%clk 0:00:02.9]} 68. Rxg7 {[%clk 0:00:05.4]} 68... Nd5 {[%clk 0:00:01.7]} 69.
Rg6 {[%clk 0:00:05.3]} 69... Nc3+ {[%clk 0:00:01.2]} 70. Kd3 {[%clk 0:00:05.5]}
70... Nd5 {[%clk 0:00:02.1]} 71. Rh6 {[%clk 0:00:05.5]} 71... Ke7 {[%clk
0:00:01.9]} 72. Ke4 {[%clk 0:00:05]} 72... Kd6 {[%clk 0:00:02.8]} 73. Rh8 {[%clk
0:00:04.5]} 73... Nc3+ {[%clk 0:00:03.1]} 74. Kf3 {[%clk 0:00:05.2]} 74... Nd5
{[%clk 0:00:04]} 75. Kg4 {[%clk 0:00:05.6]} 75... Ne3+ {[%clk 0:00:04]} 76. Kf4
{[%clk 0:00:02.8]} 76... Nd5+ {[%clk 0:00:04.5]} 77. Ke4 {[%clk 0:00:03.5]}
77... Nc3+ {[%clk 0:00:04.8]} 78. Kd3 {[%clk 0:00:04.1]} 78... Nd5 {[%clk
0:00:05.3]} 79. Rd8+ {[%clk 0:00:04.7]} 79... Kc6 {[%clk 0:00:05.9]} 80. Ra8
{[%clk 0:00:03]} 80... Kd6 {[%clk 0:00:06.2]} 81. Ra6+ {[%clk 0:00:03.4]} 81...
Kd7 {[%clk 0:00:06.5]} 82. Ke4 {[%clk 0:00:03.5]} 82... Nc3+ {[%clk 0:00:06.7]}
83. Kf3 {[%clk 0:00:04.1]} 83... Nd5 {[%clk 0:00:07.2]} 84. Re6 {[%clk
0:00:03.4]} 84... Kc7 {[%clk 0:00:03.9]} 85. Kg4 {[%clk 0:00:03.9]} 85... Kd7
{[%clk 0:00:04]} 86. Re1 {[%clk 0:00:04.4]} 86... Kd6 {[%clk 0:00:03.8]} 87. Kh5
{[%clk 0:00:04.5]} 87... Nb4 {[%clk 0:00:03.3]} 88. Kg6 {[%clk 0:00:04.5]} 88...
Nc2 {[%clk 0:00:03.5]} 89. Re8 {[%clk 0:00:03.8]} 89... Nxd4 {[%clk 0:00:03.5]}
90. Rd8+ {[%clk 0:00:04.3]} 90... Ke5 {[%clk 0:00:03.7]} 91. Rxd4 {[%clk
0:00:05.2]} 91... Kxd4 {[%clk 0:00:03.5]} 92. Kxf6 {[%clk 0:00:06.1]} 1-0

[Event "Late-Titled-Tuesday-Blitz-December-26-2023"]
[Site "Chess.com"]
[Date "2023.12.26"]
[Round "1"]
[White "HajiyevKanan"]
[Black "NCchamp"]
[Result "1/2-1/2"]
[WhiteElo "2631"]
[BlackElo "2344"]
[TimeControl "180+1"]
[EndTime "14:10:17 PST"]
[Termination "Game drawn by repetition"]

1. d4 {[%clk 0:03:00.9]} 1... d5 {[%clk 0:02:59.1]} 2. Nf3 {[%clk 0:03:00.6]}
2... Nf6 {[%clk 0:02:59.2]} 3. c4 {[%clk 0:03:01.1]} 3... dxc4 {[%clk
0:02:59.2]} 4. e3 {[%clk 0:03:01]} 4... Bg4 {[%clk 0:02:54.6]} 5. Bxc4 {[%clk
0:03:00]} 5... e6 {[%clk 0:02:55.3]} 6. Qb3 {[%clk 0:03:00]} 6... Bxf3 {[%clk
0:02:45.9]} 7. gxf3 {[%clk 0:03:00.9]} 7... Nc6 {[%clk 0:02:37.2]} 8. Nc3 {[%clk
0:02:55.1]} 8... a6 {[%clk 0:02:32.5]} 9. Be2 {[%clk 0:02:51.6]} 9... Bd6 {[%clk
0:02:12.1]} 10. f4 {[%clk 0:02:50.1]} 10... Rb8 {[%clk 0:02:09.8]} 11. Bd2
{[%clk 0:02:50.3]} 11... O-O {[%clk 0:02:09.8]} 12. O-O {[%clk 0:02:38.8]} 12...
Nb4 {[%clk 0:01:51.6]} 13. Bf3 {[%clk 0:02:31.9]} 13... Be7 {[%clk 0:01:40.4]}
14. Ne2 {[%clk 0:02:13.1]} 14... c5 {[%clk 0:01:04.8]} 15. Rac1 {[%clk
0:02:10.6]} 15... b6 {[%clk 0:01:01.5]} 16. Rfd1 {[%clk 0:01:55.8]} 16... Qe8
{[%clk 0:00:44.8]} 17. Ng3 {[%clk 0:01:48.3]} 17... Qb5 {[%clk 0:00:38.6]} 18.
Be2 {[%clk 0:01:18.7]} 18... Qe8 {[%clk 0:00:38]} 19. a3 {[%clk 0:01:14.7]}
19... Nc6 {[%clk 0:00:38.2]} 20. Bf3 {[%clk 0:01:11.3]} 20... Na5 {[%clk
0:00:36.4]} 21. Bxa5 {[%clk 0:01:03.6]} 21... bxa5 {[%clk 0:00:37.3]} 22. Qc2
{[%clk 0:00:59.3]} 22... cxd4 {[%clk 0:00:36.6]} 23. Rxd4 {[%clk 0:00:55.4]}
23... Qb5 {[%clk 0:00:35.7]} 24. Rd2 {[%clk 0:00:36.9]} 24... Rfd8 {[%clk
0:00:29.2]} 25. Rcd1 {[%clk 0:00:31]} 25... Rxd2 {[%clk 0:00:28.7]} 26. Rxd2
{[%clk 0:00:31.9]} 26... h6 {[%clk 0:00:24.1]} 27. Be2 {[%clk 0:00:32.3]} 27...
Qb3 {[%clk 0:00:23.5]} 28. Qxb3 {[%clk 0:00:28.7]} 28... Rxb3 {[%clk 0:00:24.4]}
29. Bxa6 {[%clk 0:00:29.2]} 29... g6 {[%clk 0:00:20.6]} 30. a4 {[%clk
0:00:29.7]} 30... Nd5 {[%clk 0:00:18.3]} 31. Bc4 {[%clk 0:00:28.7]} 31... Rb4
{[%clk 0:00:18.7]} 32. Bxd5 {[%clk 0:00:23.7]} 32... exd5 {[%clk 0:00:19.6]} 33.
Rxd5 {[%clk 0:00:23]} 33... Rxa4 {[%clk 0:00:19.3]} 34. Rd7 {[%clk 0:00:21.7]}
34... Bf6 {[%clk 0:00:19.5]} 35. Rb7 {[%clk 0:00:19.6]} 35... Ra1+ {[%clk
0:00:18.9]} 36. Kg2 {[%clk 0:00:19.7]} 36... Rb1 {[%clk 0:00:19.2]} 37. b3
{[%clk 0:00:20.3]} 37... a4 {[%clk 0:00:19.2]} 38. Ne4 {[%clk 0:00:18.8]} 38...
Bg7 {[%clk 0:00:18.9]} 39. Rb8+ {[%clk 0:00:18.5]} 39... Kh7 {[%clk 0:00:19.2]}
40. h4 {[%clk 0:00:15.5]} 40... a3 {[%clk 0:00:13.8]} 41. Ra8 {[%clk 0:00:15.6]}
41... Rxb3 {[%clk 0:00:13.4]} 42. Nd2 {[%clk 0:00:15.1]} 42... Rb2 {[%clk
0:00:13.2]} 43. Nc4 {[%clk 0:00:15.4]} 43... Rc2 {[%clk 0:00:12.9]} 44. Nxa3
{[%clk 0:00:14.6]} 44... Ra2 {[%clk 0:00:12.8]} 45. Ra7 {[%clk 0:00:14.2]} 45...
Bb2 {[%clk 0:00:11.7]} 46. Nb5 {[%clk 0:00:14.5]} 46... Rxa7 {[%clk 0:00:11.7]}
47. Nxa7 {[%clk 0:00:15.4]} 47... Bf6 {[%clk 0:00:12]} 48. Nc6 {[%clk
0:00:15.8]} 48... Bxh4 {[%clk 0:00:11.4]} 49. Kf3 {[%clk 0:00:16]} 49... Kg7
{[%clk 0:00:11.7]} 50. Ne5 {[%clk 0:00:15.9]} 50... Bf6 {[%clk 0:00:11.8]} 51.
Nc4 {[%clk 0:00:16.4]} 51... Kf8 {[%clk 0:00:11.9]} 52. Ke4 {[%clk 0:00:16.7]}
52... h5 {[%clk 0:00:12.1]} 53. f5 {[%clk 0:00:16.5]} 53... Ke7 {[%clk 0:00:12]}
54. fxg6 {[%clk 0:00:16.8]} 54... fxg6 {[%clk 0:00:12.9]} 55. Kf4 {[%clk
0:00:16.7]} 55... Kf7 {[%clk 0:00:13]} 56. Nd2 {[%clk 0:00:16.9]} 56... Kg7
{[%clk 0:00:13.1]} 57. Ne4 {[%clk 0:00:17.4]} 57... Be7 {[%clk 0:00:12.2]} 58.
f3 {[%clk 0:00:15.4]} 58... Bh4 {[%clk 0:00:11.7]} 59. Nd2 {[%clk 0:00:12.2]}
59... Be7 {[%clk 0:00:12.1]} 60. e4 {[%clk 0:00:12.2]} 60... Kf6 {[%clk
0:00:11.2]} 61. e5+ {[%clk 0:00:11.2]} 61... Ke6 {[%clk 0:00:11.2]} 62. Ke4
{[%clk 0:00:11.3]} 62... g5 {[%clk 0:00:12.1]} 63. Nb3 {[%clk 0:00:10.1]} 63...
h4 {[%clk 0:00:06.5]} 64. Nd4+ {[%clk 0:00:10.2]} 64... Kf7 {[%clk 0:00:07.4]}
65. Ne2 {[%clk 0:00:07.2]} 65... Ke6 {[%clk 0:00:06.8]} 66. Nd4+ {[%clk
0:00:07.6]} 66... Kf7 {[%clk 0:00:07.3]} 67. Kf5 {[%clk 0:00:08.1]} 67... Bd8
{[%clk 0:00:06.3]} 68. e6+ {[%clk 0:00:07.1]} 68... Kf8 {[%clk 0:00:06.1]} 69.
Kg4 {[%clk 0:00:05.3]} 69... Bf6 {[%clk 0:00:06]} 70. Nf5 {[%clk 0:00:05]} 70...
Ke8 {[%clk 0:00:05.4]} 71. f4 {[%clk 0:00:04.3]} 71... gxf4 {[%clk 0:00:06.2]}
72. Kxf4 {[%clk 0:00:05.2]} 72... h3 {[%clk 0:00:06.3]} 73. Kg3 {[%clk
0:00:05.4]} 73... Be5+ {[%clk 0:00:06.1]} 74. Kxh3 {[%clk 0:00:05.7]} 74... Bf6
{[%clk 0:00:07]} 75. Kg4 {[%clk 0:00:06.4]} 75... Be5 {[%clk 0:00:06.6]} 76. Kg5
{[%clk 0:00:06.8]} 76... Bb2 {[%clk 0:00:06.4]} 77. Kf4 {[%clk 0:00:07]} 77...
Ba1 {[%clk 0:00:06.5]} 78. Ke4 {[%clk 0:00:07.7]} 78... Bf6 {[%clk 0:00:06.5]}
79. Kd5 {[%clk 0:00:08.6]} 79... Bg5 {[%clk 0:00:06.7]} 80. Kd6 {[%clk 0:00:09]}
80... Bf4+ {[%clk 0:00:06.1]} 81. Kd5 {[%clk 0:00:09.6]} 81... Bh2 {[%clk
0:00:06.3]} 82. Nh4 {[%clk 0:00:07.6]} 82... Bf4 {[%clk 0:00:06.5]} 83. Ke4
{[%clk 0:00:06.6]} 83... Bh2 {[%clk 0:00:06.8]} 84. Kf5 {[%clk 0:00:06.8]} 84...
Ke7 {[%clk 0:00:06.9]} 85. Nf3 {[%clk 0:00:07.1]} 85... Bg3 {[%clk 0:00:05.9]}
86. Ng5 {[%clk 0:00:08]} 86... Be1 {[%clk 0:00:05.6]} 87. Ne4 {[%clk 0:00:08.9]}
87... Bb4 {[%clk 0:00:05.1]} 88. Nf2 {[%clk 0:00:08.8]} 88... Ba3 {[%clk
0:00:05.6]} 89. Nd3 {[%clk 0:00:09.4]} 89... Bd6 {[%clk 0:00:05.1]} 90. Nf2
{[%clk 0:00:08]} 90... Bc5 {[%clk 0:00:05.7]} 91. Ne4 {[%clk 0:00:08.6]} 91...
Ba3 {[%clk 0:00:05.2]} 92. Nf6 {[%clk 0:00:09.1]} 92... Bb2 {[%clk 0:00:05.4]}
93. Nd5+ {[%clk 0:00:09.6]} 93... Ke8 {[%clk 0:00:06]} 94. Ke4 {[%clk
0:00:07.6]} 94... Ba1 {[%clk 0:00:06.5]} 95. Kd3 {[%clk 0:00:07.5]} 95... Bb2
{[%clk 0:00:06.9]} 96. Kc4 {[%clk 0:00:08.1]} 96... Bg7 {[%clk 0:00:07.1]} 97.
Kc5 {[%clk 0:00:08.6]} 97... Bb2 {[%clk 0:00:07.1]} 98. Kd6 {[%clk 0:00:08.7]}
98... Ba3+ {[%clk 0:00:07.5]} 99. Ke5 {[%clk 0:00:09.4]} 99... Bb2+ {[%clk
0:00:07.8]} 100. Kd6 {[%clk 0:00:09.8]} 100... Ba3+ {[%clk 0:00:08.2]} 101. Kc6
{[%clk 0:00:10.4]} 101... Bb2 {[%clk 0:00:07.5]} 102. Kc5 {[%clk 0:00:09.7]}
102... Ba3+ {[%clk 0:00:07.8]} 103. Kc4 {[%clk 0:00:10.3]} 103... Bb2 {[%clk
0:00:08.2]} 104. Kd3 {[%clk 0:00:10.6]} 104... Ba3 {[%clk 0:00:08.2]} 105. Ke4
{[%clk 0:00:11.2]} 105... Bb2 {[%clk 0:00:08.7]} 106. Kf4 {[%clk 0:00:11.7]}
106... Ba1 {[%clk 0:00:09.2]} 107. Kf5 {[%clk 0:00:12.1]} 107... Bb2 {[%clk
0:00:09.6]} 108. Nc7+ {[%clk 0:00:11]} 108... Ke7 {[%clk 0:00:09.7]} 109. Nd5+
{[%clk 0:00:11.7]} 109... Ke8 {[%clk 0:00:10.1]} 1/2-1/2

[Event "Late-Titled-Tuesday-Blitz-December-26-2023"]
[Site "Chess.com"]
[Date "2023.12.26"]
[Round "2"]
[White "Dedic8"]
[Black "INLOVEWITHF"]
[Result "1-0"]
[WhiteElo "2838"]
[BlackElo "2544"]
[TimeControl "180+1"]
[EndTime "14:13:36 PST"]
[Termination "Dedic8 won by resignation"]

1. d4 {[%clk 0:03:00.9]} 1... Nf6 {[%clk 0:02:58.9]} 2. c4 {[%clk 0:03:01.4]}
2... e6 {[%clk 0:02:59.3]} 3. Nc3 {[%clk 0:03:01.7]} 3... d5 {[%clk 0:02:59]} 4.
cxd5 {[%clk 0:03:02.1]} 4... exd5 {[%clk 0:02:59.9]} 5. Bg5 {[%clk 0:03:02.3]}
5... Bb4 {[%clk 0:03:00.6]} 6. e3 {[%clk 0:03:02.3]} 6... h6 {[%clk 0:03:00.8]}
7. Bh4 {[%clk 0:03:02.8]} 7... g5 {[%clk 0:03:01]} 8. Bg3 {[%clk 0:03:03.2]}
8... Ne4 {[%clk 0:03:01.9]} 9. Ne2 {[%clk 0:03:02.9]} 9... h5 {[%clk 0:03:00.4]}
10. h3 {[%clk 0:03:03.4]} 10... Nxg3 {[%clk 0:02:47.9]} 11. Nxg3 {[%clk
0:03:04.3]} 11... h4 {[%clk 0:02:47.6]} 12. Nh5 {[%clk 0:03:04]} 12... Kf8
{[%clk 0:02:42.5]} 13. Bd3 {[%clk 0:03:01.1]} 13... c6 {[%clk 0:02:36.6]} 14.
O-O {[%clk 0:03:01]} 14... f5 {[%clk 0:02:27.2]} 15. f4 {[%clk 0:02:26.6]} 15...
g4 {[%clk 0:02:25.6]} 16. hxg4 {[%clk 0:02:27.5]} 16... fxg4 {[%clk 0:02:26]}
17. Bg6 {[%clk 0:02:28.3]} 17... Rh6 {[%clk 0:02:15.1]} 18. f5 {[%clk
0:02:28.4]} 18... Qg5 {[%clk 0:02:13.6]} 19. Rf4 {[%clk 0:02:14]} 19... Rxh5
{[%clk 0:02:00]} 20. Bxh5 {[%clk 0:02:13.7]} 20... Qxh5 {[%clk 0:02:00.9]} 21.
Rxg4 {[%clk 0:02:14.3]} 21... Bxf5 {[%clk 0:01:47.4]} 22. Rg8+ {[%clk
0:02:13.4]} 22... Kxg8 {[%clk 0:01:42.4]} 23. Qxh5 {[%clk 0:02:14.3]} 1-0

[Event "Late-Titled-Tuesday-Blitz-December-26-2023"]
[Site "Chess.com"]
[Date "2023.12.26"]
[Round "2"]
[White "h4parah5"]
[Black "Nathan_Filgueiras"]
[Result "1-0"]
[WhiteElo "2919"]
[BlackElo "2578"]
[TimeControl "180+1"]
[EndTime "14:13:49 PST"]
[Termination "h4parah5 won by resignation"]

1. Nf3 {[%clk 0:03:00.9]} 1... Nf6 {[%clk 0:02:58.4]} 2. b3 {[%clk 0:03:00.3]}
2... b6 {[%clk 0:02:58.5]} 3. g3 {[%clk 0:02:59.5]} 3... Bb7 {[%clk 0:02:58.9]}
4. Bg2 {[%clk 0:02:59.8]} 4... e6 {[%clk 0:02:58.9]} 5. Bb2 {[%clk 0:02:59.7]}
5... Be7 {[%clk 0:02:58.3]} 6. O-O {[%clk 0:02:58.9]} 6... O-O {[%clk
0:02:58.9]} 7. c4 {[%clk 0:02:58.2]} 7... c5 {[%clk 0:02:59.2]} 8. Nc3 {[%clk
0:02:57.1]} 8... d5 {[%clk 0:02:57.7]} 9. e3 {[%clk 0:02:55.4]} 9... Nbd7 {[%clk
0:02:47]} 10. Qe2 {[%clk 0:02:53.3]} 10... a6 {[%clk 0:02:46.8]} 11. cxd5 {[%clk
0:02:45.8]} 11... exd5 {[%clk 0:02:46.7]} 12. d4 {[%clk 0:02:45.3]} 12... Rc8
{[%clk 0:02:46.9]} 13. dxc5 {[%clk 0:02:34.9]} 13... bxc5 {[%clk 0:02:46.3]} 14.
Rfd1 {[%clk 0:02:34.3]} 14... Qc7 {[%clk 0:02:40.7]} 15. Nh4 {[%clk 0:02:30.7]}
15... g6 {[%clk 0:02:05.6]} 16. Nxd5 {[%clk 0:02:22.5]} 16... Nxd5 {[%clk
0:02:04]} 17. Bxd5 {[%clk 0:02:23.4]} 17... Bxh4 {[%clk 0:02:04]} 18. gxh4
{[%clk 0:02:22.1]} 18... Bxd5 {[%clk 0:01:49.4]} 19. Rxd5 {[%clk 0:02:23]} 19...
Nb6 {[%clk 0:01:49.2]} 20. Rdd1 {[%clk 0:02:17.1]} 20... c4 {[%clk 0:01:49.5]}
21. Rac1 {[%clk 0:02:15.3]} 21... Qe7 {[%clk 0:01:47]} 22. Qg4 {[%clk
0:02:12.2]} 22... cxb3 {[%clk 0:01:41.6]} 23. Qd4 {[%clk 0:02:11.3]} 1-0

[Event "Late-Titled-Tuesday-Blitz-December-26-2023"]
[Site "Chess.com"]
[Date "2023.12.26"]
[Round "2"]
[White "SlipperySpeedster"]
[Black "Msb2"]
[Result "0-1"]
[WhiteElo "2618"]
[BlackElo "3003"]
[TimeControl "180+1"]
[EndTime "14:14:36 PST"]
[Termination "Msb2 won by resignation"]

1. Nf3 {[%clk 0:03:00.9]} 1... d5 {[%clk 0:03:00.2]} 2. g3 {[%clk 0:02:59.8]}
2... e6 {[%clk 0:03:00.6]} 3. c4 {[%clk 0:02:59.6]} 3... Nf6 {[%clk 0:03:01]} 4.
b3 {[%clk 0:02:59.5]} 4... Bd6 {[%clk 0:03:01.4]} 5. Bb2 {[%clk 0:02:59.9]} 5...
O-O {[%clk 0:03:01.4]} 6. Bg2 {[%clk 0:03:00.4]} 6... Nc6 {[%clk 0:03:01.9]} 7.
O-O {[%clk 0:03:00.5]} 7... d4 {[%clk 0:03:02.5]} 8. Nxd4 {[%clk 0:02:26.5]}
8... Nxd4 {[%clk 0:03:03.4]} 9. Bxd4 {[%clk 0:02:26.3]} 9... Bxg3 {[%clk
0:03:03.9]} 10. hxg3 {[%clk 0:02:22.9]} 10... Qxd4 {[%clk 0:03:03.8]} 11. Na3
{[%clk 0:02:20.9]} 11... c6 {[%clk 0:02:59.3]} 12. Nc2 {[%clk 0:02:17.8]} 12...
Qe5 {[%clk 0:02:55]} 13. d4 {[%clk 0:02:17.8]} 13... Qh5 {[%clk 0:02:55.2]} 14.
e4 {[%clk 0:02:14.4]} 14... Ng4 {[%clk 0:02:46.5]} 15. Re1 {[%clk 0:02:13.5]}
15... e5 {[%clk 0:02:46.4]} 16. f3 {[%clk 0:01:49]} 16... Qh2+ {[%clk
0:02:29.7]} 17. Kf1 {[%clk 0:01:48.3]} 17... f5 {[%clk 0:02:30.6]} 18. dxe5
{[%clk 0:00:51.9]} 18... Qxg3 {[%clk 0:02:19.1]} 19. fxg4 {[%clk 0:00:48.9]}
19... fxg4+ {[%clk 0:02:20]} 20. Kg1 {[%clk 0:00:47.9]} 20... Qf2+ {[%clk
0:02:19.8]} 21. Kh1 {[%clk 0:00:45.9]} 21... Qh4+ {[%clk 0:02:20.7]} 22. Kg1
{[%clk 0:00:46]} 22... g3 {[%clk 0:02:21.3]} 0-1

[Event "Late-Titled-Tuesday-Blitz-December-26-2023"]
[Site "Chess.com"]
[Date "2023.12.26"]
[Round "2"]
[White "Veleamater"]
[Black "mightysmasher"]
[Result "0-1"]
[WhiteElo "2349"]
[BlackElo "2586"]
[TimeControl "180+1"]
[EndTime "14:14:41 PST"]
[Termination "mightysmasher won by resignation"]

1. g3 {[%clk 0:03:00.9]} 1... d5 {[%clk 0:02:58.9]} 2. Bg2 {[%clk 0:03:00.7]}
2... Nf6 {[%clk 0:02:58.4]} 3. d3 {[%clk 0:03:01.3]} 3... e6 {[%clk 0:02:56.9]}
4. h3 {[%clk 0:03:01.8]} 4... Bd6 {[%clk 0:02:56.3]} 5. Nf3 {[%clk 0:03:02.7]}
5... O-O {[%clk 0:02:56.5]} 6. O-O {[%clk 0:03:03.6]} 6... b6 {[%clk 0:02:56.5]}
7. Nc3 {[%clk 0:03:04]} 7... Bb7 {[%clk 0:02:56.3]} 8. e4 {[%clk 0:03:04.6]}
8... dxe4 {[%clk 0:02:52]} 9. Ng5 {[%clk 0:03:04.3]} 9... Nbd7 {[%clk
0:02:48.5]} 10. Ngxe4 {[%clk 0:03:04.4]} 10... Nxe4 {[%clk 0:02:45]} 11. dxe4
{[%clk 0:03:04.1]} 11... Nc5 {[%clk 0:02:40.5]} 12. Qe2 {[%clk 0:03:03.3]} 12...
Be5 {[%clk 0:02:33]} 13. Rd1 {[%clk 0:03:02.3]} 13... Qe7 {[%clk 0:02:32.8]} 14.
f4 {[%clk 0:03:01.6]} 14... Bxc3 {[%clk 0:02:32.3]} 15. bxc3 {[%clk 0:03:01.1]}
15... Rad8 {[%clk 0:02:32.6]} 16. Bd2 {[%clk 0:02:58.7]} 16... h6 {[%clk
0:02:27.4]} 17. Bf3 {[%clk 0:02:54.2]} 17... Ba6 {[%clk 0:02:22]} 18. Qf2 {[%clk
0:02:50.2]} 18... Bb7 {[%clk 0:02:17.4]} 19. Qe3 {[%clk 0:02:48.4]} 19... Rd7
{[%clk 0:02:11.8]} 20. Rf1 {[%clk 0:02:46.2]} 20... Nxe4 {[%clk 0:02:04.8]} 21.
Be1 {[%clk 0:02:34.2]} 21... Nd6 {[%clk 0:02:01.9]} 22. Bxb7 {[%clk 0:02:32.2]}
22... Nxb7 {[%clk 0:02:01.1]} 23. g4 {[%clk 0:02:32.2]} 23... Nd6 {[%clk
0:02:00.4]} 24. Bg3 {[%clk 0:02:31]} 24... Re8 {[%clk 0:01:58]} 25. Rae1 {[%clk
0:02:30.2]} 25... Qf8 {[%clk 0:01:55.6]} 26. Rf2 {[%clk 0:02:29]} 26... f5
{[%clk 0:01:52.3]} 27. Rfe2 {[%clk 0:02:28.2]} 27... Ne4 {[%clk 0:01:49.7]} 28.
Bh2 {[%clk 0:02:25.3]} 28... Red8 {[%clk 0:01:43.8]} 29. g5 {[%clk 0:02:22]}
29... hxg5 {[%clk 0:01:43.3]} 30. fxg5 {[%clk 0:02:22.3]} 30... Rd1 {[%clk
0:01:42.8]} 31. Be5 {[%clk 0:02:21.8]} 31... Qf7 {[%clk 0:01:35.3]} 32. Kg2
{[%clk 0:02:14.1]} 32... Rxe1 {[%clk 0:01:33.8]} 33. Rxe1 {[%clk 0:02:14.4]}
33... Qh5 {[%clk 0:01:32.6]} 34. Bf4 {[%clk 0:02:10]} 34... Rd2+ {[%clk
0:01:30.3]} 35. Kg1 {[%clk 0:02:08.2]} 35... Rxc2 {[%clk 0:01:27.7]} 36. Bxc7
{[%clk 0:02:03.5]} 36... Rxc3 {[%clk 0:01:24.6]} 37. Qf4 {[%clk 0:02:01.9]}
37... Rg3+ {[%clk 0:01:23.3]} 0-1